fUSD/lending_fUSD_20250221
["ID","MTS","AMOUNT","RATE_DAILY","PERIOD"]
[353926707,1740150649677,-500.0,0.00013698,2]
[353926708,1740150649686,-500.0,0.00013698,2]
[353926709,1740150649696,-500.0,0.00013698,2]
[353926710,1740150649705,-500.0,0.00013698,2]
[353926711,1740150649714,-500.0,0.00013698,2]
[353926712,1740150649724,-500.0,0.00013698,2]
[353926713,1740150649736,-500.0,0.00013698,2]
[353926714,1740150649745,-500.0,0.00013698,2]
[353926715,1740150649754,-500.0,0.00013698,2]
[353926716,1740150649763,-500.0,0.00013698,2]
[353926717,1740150649772,-500.0,0.00013698,2]
[353926718,1740150649782,-500.0,0.00013698,2]
[353926719,1740150649791,-500.0,0.00013698,2]
[353926720,1740150649800,-500.0,0.00013698,2]
[353926721,1740150649810,-500.0,0.00013698,2]
[353926722,1740150649819,-500.0,0.00013698,2]
[353926723,1740150649829,-500.0,0.00013698,2]
[353926724,1740150649839,-500.0,0.00013698,2]
[353926725,1740150649848,-500.0,0.00013698,2]
[353926726,1740150649858,-500.0,0.00013698,2]
[353926727,1740150649868,-500.0,0.00013698,2]
[353926728,1740150649878,-500.0,0.00013698,2]
[353926729,1740150649887,-500.0,0.00013698,2]
[353926730,1740150649896,-500.0,0.00013698,2]
[353926731,1740150649906,-500.0,0.00013698,2]
[353926732,1740150649916,-500.0,0.00013698,2]
[353926733,1740150649925,-500.0,0.00013698,2]
[353926734,1740150649934,-500.0,0.00013698,2]
[353926735,1740150649944,-500.0,0.00013698,2]
[353926736,1740150649953,-500.0,0.00013698,2]
[353926737,1740150649963,-500.0,0.00013698,2]
[353926738,1740150649972,-500.0,0.00013698,2]
[353926739,1740150649982,-500.0,0.00013698,2]
[353926740,1740150649994,-500.0,0.00013698,2]
[353926741,1740150650003,-500.0,0.00013698,2]
[353926742,1740150650013,-500.0,0.00013698,2]
[353926743,1740150650022,-500.0,0.00013698,2]
[353926744,1740150650031,-500.0,0.00013698,2]
[353926745,1740150650041,-500.0,0.00013698,2]
[353926746,1740150650051,-500.0,0.00013698,2]
[353926747,1740150650061,-500.0,0.00013698,2]
[353926748,1740150650071,-500.0,0.00013698,2]
[353926749,1740150650080,-500.0,0.00013698,2]
[353926750,1740150650090,-500.0,0.00013698,2]
[353926751,1740150650099,-500.0,0.00013698,2]
[353926752,1740150650109,-500.0,0.00013698,2]
[353926753,1740150650119,-500.0,0.00013698,2]
[353926754,1740150650128,-500.0,0.00013698,2]
[353926755,1740150650137,-518.0,0.00013698,2]
[353926756,1740150650147,-766.17,0.00013698,2]
[353926757,1740150650157,-500.0,0.00013698,2]
[353926758,1740150650166,-500.0,0.00013698,2]
[353926759,1740150650176,-500.0,0.00013698,2]
[353926760,1740150650185,-500.0,0.00013698,2]
[353926761,1740150650195,-500.0,0.00013698,2]
[353926762,1740150650207,-500.0,0.00013698,2]
[353926763,1740150650220,-500.0,0.00013698,2]
[353926764,1740150650229,-500.0,0.00013698,2]
[353926765,1740150650241,-500.0,0.00013698,2]
[353926766,1740150650251,-500.0,0.00013698,2]
[353926767,1740150650260,-500.0,0.00013698,2]
[353926768,1740150650270,-500.0,0.00013698,2]
[353926769,1740150650279,-500.0,0.00013698,2]
[353926770,1740150650290,-500.0,0.00013698,2]
[353926771,1740150650299,-500.0,0.00013698,2]
[353926772,1740150650309,-500.0,0.00013698,2]
[353926773,1740150650318,-500.0,0.00013698,2]
[353926774,1740150650327,-500.0,0.00013698,2]
[353926775,1740150650337,-500.0,0.00013698,2]
[353926776,1740150650346,-500.0,0.00013698,2]
[353926777,1740150650355,-500.0,0.00013698,2]
[353926778,1740150650365,-500.0,0.00013698,2]
[353926779,1740150650374,-500.0,0.00013698,2]
[353926780,1740150650383,-500.0,0.00013698,2]
[353926781,1740150650393,-500.0,0.00013698,2]
[353926782,1740150650402,-500.0,0.00013698,2]
[353926783,1740150650411,-493.01214436,0.00013698,2]
[353926784,1740150650422,-500.0,0.00013698,2]
[353926785,1740150650431,-500.0,0.00013698,2]
[353926786,1740150650440,-500.0,0.00013698,2]
[353926787,1740150650450,-500.0,0.00013698,2]
[353926788,1740150650459,-500.0,0.00013698,2]
[353926789,1740150650468,-500.0,0.00013698,2]
[353926790,1740150650477,-500.0,0.00013698,2]
[353926791,1740150650488,-200.0,0.00013698,2]
[353926792,1740150650498,-500.0,0.00013698,2]
[353926793,1740150650507,-500.0,0.00013698,2]
[353926794,1740150650516,-500.0,0.00013698,2]
[353926795,1740150650526,-500.0,0.00013698,2]
[353926796,1740150650537,-500.0,0.00013698,2]
[353926797,1740150650547,-500.0,0.00013698,2]
[353926798,1740150650558,-500.0,0.00013698,2]
[353926799,1740150650567,-500.0,0.00013698,2]
[353926800,1740150650576,-500.0,0.00013698,2]
[353926801,1740150650585,-500.0,0.00013698,2]
[353926802,1740150650594,-500.0,0.00013698,2]
[353926803,1740150650603,-500.0,0.00013698,2]
[353926804,1740150650613,-500.0,0.00013698,2]
[353926805,1740150650622,-500.0,0.00013698,2]
[353926806,1740150650631,-500.0,0.00013698,2]
[353926807,1740150650641,-500.0,0.00013698,2]
[353926808,1740150650650,-500.0,0.00013698,2]
[353926809,1740150650660,-851.04,0.00013698,2]
[353926810,1740150650671,-500.0,0.00013698,2]
[353926811,1740150650680,-500.0,0.00013698,2]
[353926812,1740150650689,-500.0,0.00013698,2]
[353926813,1740150650698,-500.0,0.00013698,2]
[353926814,1740150650707,-500.0,0.00013698,2]
[353926815,1740150650716,-500.0,0.00013698,2]
[353926816,1740150650726,-500.0,0.00013698,2]
[353926817,1740150650737,-500.0,0.00013698,2]
[353926818,1740150650747,-511.43220571,0.00013698,2]
[353926819,1740150650757,-704.17,0.00013698,2]
[353926820,1740150650766,-500.0,0.00013698,2]
[353926821,1740150650775,-500.0,0.00013698,2]
[353926822,1740150650785,-721.37,0.00013698,2]
[353926823,1740150650795,-573.98439528,0.00013698,2]
[353926824,1740150650804,-500.0,0.00013698,2]
[353926825,1740150650814,-500.0,0.00013698,2]
[353926826,1740150650824,-566.98,0.00013698,2]
[353926827,1740150650834,-500.0,0.00013698,2]
[353926828,1740150650843,-500.0,0.00013698,2]
[353926829,1740150650853,-500.0,0.00013698,2]
[353926830,1740150650862,-500.0,0.00013698,2]
[353926831,1740150650872,-500.0,0.00013698,2]
[353926832,1740150650881,-729.97,0.00013698,2]
[353926833,1740150650891,-500.0,0.00013698,2]
[353926834,1740150650900,-500.0,0.00013698,2]
[353926835,1740150650910,-500.0,0.00013698,2]
[353926836,1740150650919,-500.0,0.00013698,2]
[353926837,1740150650929,-1000.0,0.00013698,2]
[353926838,1740150650938,-500.0,0.00013698,2]
[353926839,1740150650948,-500.0,0.00013698,2]
[353926840,1740150650957,-801.33,0.00013698,2]
[353926841,1740150650967,-500.0,0.00013698,2]
[353926842,1740150650977,-695.0,0.00013698,2]
[353926843,1740150650987,-563.55,0.00013698,2]
[353926844,1740150650996,-500.0,0.00013698,2]
[353926845,1740150651007,-520.83,0.00013698,2]
[353926846,1740150651016,-500.0,0.00013698,2]
[353926847,1740150651026,-500.0,0.00013698,2]
[353926848,1740150651036,-500.0,0.00013698,2]
[353926849,1740150651046,-500.0,0.00013698,2]
[353926850,1740150651055,-533.98,0.00013698,2]
[353926851,1740150651065,-500.0,0.00013698,2]
[353926852,1740150651075,-500.0,0.00013698,2]
[353926853,1740150651086,-500.0,0.00013698,2]
[353926854,1740150651095,-1355.41,0.00013698,2]
[353926855,1740150651105,-995.84,0.00013698,2]
[353926856,1740150651114,-500.0,0.00013698,2]
[353926857,1740150651124,-500.0,0.00013698,2]
[353926858,1740150651134,-500.0,0.00013698,2]
[353926859,1740150651144,-500.0,0.00013698,2]
[353926860,1740150651154,-500.0,0.00013698,2]
[353926861,1740150651163,-573.17,0.00013698,2]
[353926862,1740150651173,-500.0,0.00013698,2]
[353926863,1740150651182,-1168.46,0.00013698,2]
[353926864,1740150651191,-500.0,0.00013698,2]
[353926865,1740150651202,-500.0,0.00013698,2]
[353926866,1740150651215,-506.74172728,0.00013698,2]
[353926867,1740150651224,-500.0,0.00013698,2]
[353926868,1740150651235,-500.0,0.00013698,2]
[353926869,1740150651245,-500.0,0.00013698,2]
[353926870,1740150651255,-567.51,0.00013698,2]
[353926871,1740150651265,-500.0,0.00013698,2]
[353926872,1740150651275,-500.0,0.00013698,2]
[353926873,1740150651285,-500.0,0.00013698,2]
[353926874,1740150651295,-500.0,0.00013698,2]
[353926875,1740150651305,-621.04,0.00013698,2]
[353926876,1740150651314,-604.39,0.00013698,2]
[353926877,1740150651323,-500.0,0.00013698,2]
[353926878,1740150651332,-500.0,0.00013698,2]
[353926879,1740150651342,-502.52864404,0.00013698,2]
[353926880,1740150651351,-500.0,0.00013698,2]
[353926881,1740150651360,-567.42,0.00013698,2]
[353926882,1740150651370,-500.0,0.00013698,2]
[353926883,1740150651379,-500.0,0.00013698,2]
[353926884,1740150651389,-507.83711668,0.00013698,2]
[353926885,1740150651398,-500.0,0.00013698,2]
[353926886,1740150651407,-500.0,0.00013698,2]
[353926887,1740150651416,-500.0,0.00013698,2]
[353926888,1740150651425,-608.14,0.00013698,2]
[353926889,1740150651434,-500.0,0.00013698,2]
[353926890,1740150651443,-500.0,0.00013698,2]
[353926891,1740150651452,-500.0,0.00013698,2]
[353926892,1740150651461,-500.0,0.00013698,2]
[353926893,1740150651471,-500.0,0.00013698,2]
[353926894,1740150651480,-504.17531236,0.00013698,2]
[353926895,1740150651491,-500.0,0.00013698,2]
[353926896,1740150651500,-500.0,0.00013698,2]
[353926897,1740150651509,-2165.3,0.00013698,2]
[353926898,1740150651518,-500.0,0.00013698,2]
[353926899,1740150651528,-500.0,0.00013698,2]
[353926900,1740150651537,-500.0,0.00013698,2]
[353926901,1740150651546,-500.0,0.00013698,2]
[353926902,1740150651681,-500.0,0.00013698,2]
[353926903,1740150651691,-651.78,0.00013698,2]
[353926904,1740150651701,-500.0,0.00013698,2]
[353926905,1740150651710,-500.0,0.00013698,2]
[353926906,1740150651720,-500.0,0.00013698,2]
[353926907,1740150651730,-320.39440139,0.00013698,2]
[353926908,1740150651740,-500.0,0.00013698,2]
[353926909,1740150651749,-500.0,0.00013698,2]
[353926910,1740150651759,-2362.12,0.00013698,2]
[353926911,1740150651768,-504.08183351,0.00013698,2]
[353926912,1740150651778,-515.92148815,0.00013698,2]
[353926913,1740150651788,-714.86,0.00013698,2]
[353926914,1740150651797,-500.0,0.00013698,2]
[353926915,1740150651807,-500.0,0.00013698,2]
[353926916,1740150651816,-500.0,0.00013698,2]
[353926917,1740150651825,-500.0,0.00013698,2]
[353926918,1740150651835,-500.0,0.00013698,2]
[353926919,1740150651844,-500.0,0.00013698,2]
[353926920,1740150651854,-500.0,0.00013698,2]
[353926921,1740150651863,-500.0,0.00013698,2]
[353926922,1740150651873,-735.49,0.00013698,2]
[353926923,1740150651882,-500.0,0.00013698,2]
[353926924,1740150651892,-500.0,0.00013698,2]
[353926925,1740150651901,-500.0,0.00013698,2]
[353926926,1740150651910,-744.7,0.00013698,2]
[353926927,1740150651920,-522.62019936,0.00013698,2]
[353926928,1740150651931,-500.0,0.00013698,2]
[353926929,1740150651941,-499.36996032,0.00013698,2]
[353926930,1740150651950,-500.0,0.00013698,2]
[353926931,1740150651959,-500.0,0.00013698,2]
[353926932,1740150651969,-588.61,0.00013698,2]
[353926933,1740150651978,-710.1,0.00013698,2]
[353926934,1740150651990,-500.0,0.00013698,2]
[353926935,1740150651999,-500.0,0.00013698,2]
[353926936,1740150652009,-500.0,0.00013698,2]
[353926937,1740150652018,-500.0,0.00013698,2]
[353926938,1740150652028,-500.0,0.00013698,2]
[353926939,1740150652038,-500.0,0.00013698,2]
[353926940,1740150652047,-500.0,0.00013698,2]
[353926941,1740150652056,-657.63,0.00013698,2]
[353926942,1740150652066,-647.74,0.00013698,2]
[353926943,1740150652076,-500.0,0.00013698,2]
[353926944,1740150652085,-734.25,0.00013698,2]
[353926945,1740150652095,-662.46,0.00013698,2]
[353926946,1740150652104,-500.0,0.00013698,2]
[353926947,1740150652113,-500.0,0.00013698,2]
[353926948,1740150652123,-500.0,0.00013698,2]
[353926949,1740150652133,-1388.68,0.00013698,2]
[353926950,1740150652143,-908.31,0.00013698,2]
[353926951,1740150652152,-440.99713313,0.00013698,2]
[353926952,1740150652162,-599.72,0.00013698,2]
[353926953,1740150652172,-500.0,0.00013698,2]
[353926954,1740150652182,-500.0,0.00013698,2]
[353926955,1740150652191,-515.81,0.00013698,2]
[353926956,1740150652202,-500.0,0.00013698,2]
[353926957,1740150652214,-500.0,0.00013698,2]
[353926958,1740150652223,-500.0,0.00013698,2]
[353926959,1740150652232,-500.0,0.00013698,2]
[353926960,1740150652243,-500.0,0.00013698,2]
[353926961,1740150652253,-1071.16,0.00013698,2]
[353926962,1740150652262,-500.0,0.00013698,2]
[353926963,1740150652272,-1114.05,0.00013698,2]
[353926964,1740150652282,-607.66,0.00013698,2]
[353926965,1740150652294,-301.0105002,0.00013698,2]
[353926966,1740150652303,-865.79,0.00013698,2]
[353926967,1740150652312,-500.0,0.00013698,2]
[353926968,1740150652322,-1195.52,0.00013698,2]
[353926969,1740150652331,-500.0,0.00013698,2]
[353926970,1740150652340,-500.0,0.00013698,2]
[353926971,1740150652349,-500.0,0.00013698,2]
[353926972,1740150652359,-665.97,0.00013698,2]
[353926973,1740150652368,-505.44190468,0.00013698,2]
[353926974,1740150652376,-500.0,0.00013698,2]
[353926975,1740150652386,-500.0,0.00013698,2]
[353926976,1740150652396,-500.0,0.00013698,2]
[353926977,1740150652406,-910.06,0.00013698,2]
[353926978,1740150652417,-583.5,0.00013698,2]
[353926979,1740150652427,-500.0,0.00013698,2]
[353926980,1740150652436,-500.0,0.00013698,2]
[353926981,1740150652445,-837.55,0.00013698,2]
[353926982,1740150652454,-789.22,0.00013698,2]
[353926983,1740150652463,-505.29748627,0.00013698,2]
[353926984,1740150652472,-500.0,0.00013698,2]
[353926985,1740150652481,-500.0,0.00013698,2]
[353926986,1740150652492,-568.67,0.00013698,2]
[353926987,1740150652502,-500.0,0.00013698,2]
[353926988,1740150652511,-500.0,0.00013698,2]
[353926989,1740150652521,-963.09,0.00013698,2]
[353926990,1740150652530,-150.0,0.00013698,2]
[353926991,1740150652539,-500.0,0.00013698,2]
[353926992,1740150652548,-500.0,0.00013698,2]
[353926993,1740150652557,-500.0,0.00013698,2]
[353926994,1740150652566,-736.74,0.00013698,2]
[353926995,1740150652575,-150.0,0.00013698,2]
[353926996,1740150652584,-500.0,0.00013698,2]
[353926997,1740150652594,-500.0,0.00013698,2]
[353926998,1740150652603,-500.0,0.00013698,2]
[353926999,1740150652612,-500.0,0.00013698,2]
[353927000,1740150652622,-500.0,0.00013698,2]
[353927001,1740150652632,-1221.29,0.00013698,2]
[353927002,1740150652643,-500.0,0.00013698,2]
[353927003,1740150652652,-546.03,0.00013698,2]
[353927004,1740150652663,-500.0,0.00013698,2]
[353927005,1740150652673,-500.0,0.00013698,2]
[353927006,1740150652682,-741.77,0.00013698,2]
[353927007,1740150652691,-532.79,0.00013698,2]
[353927008,1740150652700,-977.57,0.00013698,2]
[353927009,1740150652709,-500.0,0.00013698,2]
[353927010,1740150652718,-500.0,0.00013698,2]
[353927011,1740150652727,-500.0,0.00013698,2]
[353927012,1740150652736,-500.0,0.00013698,2]
[353927013,1740150652749,-500.0,0.00013698,2]
[353927014,1740150652758,-1594.36,0.00013698,2]
[353927015,1740150652768,-500.0,0.00013698,2]
[353927016,1740150652777,-500.0,0.00013698,2]
[353927017,1740150652787,-500.0,0.00013698,2]
[353927018,1740150652796,-568.23,0.00013698,2]
[353927019,1740150652805,-2180.28,0.00013698,2]
[353927020,1740150652815,-500.0,0.00013698,2]
[353927021,1740150652825,-793.97,0.00013698,2]
[353927022,1740150652834,-779.74,0.00013698,2]
[353927023,1740150652844,-509.20712048,0.00013698,2]
[353927024,1740150652854,-605.59,0.00013698,2]
[353927025,1740150652863,-500.0,0.00013698,2]
[353927026,1740150652872,-500.0,0.00013698,2]
[353927027,1740150652882,-500.0,0.00013698,2]
[353927028,1740150652891,-500.0,0.00013698,2]
[353927029,1740150652901,-500.0,0.00013698,2]
[353927030,1740150652911,-500.0,0.00013698,2]
[353927031,1740150652920,-500.0,0.00013698,2]
[353927032,1740150652930,-500.0,0.00013698,2]
[353927033,1740150652940,-548.52,0.00013698,2]
[353927034,1740150652949,-727.37,0.00013698,2]
[353927035,1740150652960,-500.0,0.00013698,2]
[353927036,1740150652969,-663.69,0.00013698,2]
[353927037,1740150652979,-1096.83,0.00013698,2]
[353927038,1740150652988,-500.0,0.00013698,2]
[353927039,1740150652998,-500.0,0.00013698,2]
[353927040,1740150653007,-500.0,0.00013698,2]
[353927041,1740150653017,-4537.71,0.00013698,2]
[353927042,1740150653026,-500.0,0.00013698,2]
[353927043,1740150653035,-500.0,0.00013698,2]
[353927044,1740150653045,-500.0,0.00013698,2]
[353927045,1740150653054,-832.17,0.00013698,2]
[353927046,1740150653064,-874.7,0.00013698,2]
[353927047,1740150653074,-500.0,0.00013698,2]
[353927048,1740150653084,-500.0,0.00013698,2]
[353927049,1740150653093,-627.29,0.00013698,2]
[353927050,1740150653103,-500.0,0.00013698,2]
[353927051,1740150653114,-794.1,0.00013698,2]
[353927052,1740150653127,-1443.64,0.00013698,2]
[353927053,1740150653136,-500.0,0.00013698,2]
[353927054,1740150653145,-179.0,0.00013698,3]
[353927055,1740150653155,-500.46,0.00013698,2]
[353927056,1740150653164,-500.0,0.00013699,2]
[353927057,1740150653174,-500.0,0.00013699,2]
[353927058,1740150653183,-500.0,0.00013699,2]
[353927059,1740150653192,-500.0,0.00013699,2]
[353927060,1740150653206,-500.0,0.00013699,2]
[353927061,1740150653219,-500.0,0.00013699,2]
[353927062,1740150653228,-500.0,0.00013699,2]
[353927063,1740150653237,-500.0,0.00013699,2]
[353927064,1740150653248,-201.10232783,0.00013699,7]
[353927065,1740150653258,-4000.0,0.00013699,2]
[353927066,1740150653267,-500.0,0.00013699,2]
[353927067,1740150653277,-200.0,0.00013699,2]
[353927068,1740150653287,-588.62,0.00013699,2]
[353927069,1740150653297,-7396.97,0.00013699,2]
[353927070,1740150653306,-300.0,0.00013699,2]
[353927071,1740150653315,-800.65,0.00013699,2]
[353927072,1740150653325,-800.65,0.00013699,2]
[353927073,1740150653334,-800.65,0.00013699,2]
[353927074,1740150653343,-800.65,0.00013699,2]
[353927075,1740150653352,-643.24,0.00013699,2]
[353927076,1740150653361,-643.24,0.00013699,2]
[353927077,1740150653370,-643.24,0.00013699,2]
[353927078,1740150653379,-643.24,0.00013699,2]
[353927079,1740150653388,-500.0,0.00013699,2]
[353927080,1740150653397,-500.0,0.00013699,2]
[353927081,1740150653406,-500.0,0.00013699,2]
[353927082,1740150653415,-500.0,0.00013699,2]
[353927083,1740150653424,-2351.88,0.00013699,2]
[353927084,1740150653433,-2351.88,0.00013699,2]
[353927085,1740150653442,-2351.88,0.00013699,2]
[353927086,1740150653451,-2351.88,0.00013699,2]
[353927087,1740150653460,-2351.88,0.00013699,2]
[353927088,1740150653469,-1137.0,0.000137,2]
[353927089,1740150653478,-143555.84249438,0.000137,5]
[353927090,1740150957984,359.12,8.767e-05,2]
[353927097,1740151763802,-300.0,9.756e-05,2]
[353927098,1740151763826,-9700.0,9.757e-05,2]
[353927099,1740151765670,-1519.174706,9.757e-05,2]
[353927100,1740151765692,-481.77776542,9.828e-05,2]
[353927101,1740151765713,-159.35,9.907e-05,2]
[353927102,1740151765733,-550.0,0.0001,2]
[353927103,1740151765757,-7289.69752858,0.0001,2]
[353927104,1740151766348,-10000.0,0.0001,2]
[353927105,1740151767045,-10000.0,0.0001,2]
[353927106,1740151767817,-10000.0,0.0001,2]
[353927107,1740151768476,-10000.0,0.0001,2]
[353927108,1740151769152,-10000.0,0.0001,2]
[353927109,1740151769743,-10000.0,0.0001,2]
[353927110,1740151770422,-10000.0,0.0001,2]
[353927111,1740151771039,-10000.0,0.0001,2]
[353927112,1740151771740,-10000.0,0.0001,2]
[353927113,1740151772357,-2043.57067933,0.0001,2]
[353927114,1740151772383,-7956.42932067,0.0001,2]
[353927115,1740151776213,-10000.0,0.0001,2]
[353927116,1740151776603,-10000.0,0.0001,2]
[353927117,1740151780066,-10000.0,0.0001,2]
[353927118,1740151780892,-10000.0,0.0001,2]
[353927119,1740151781839,-10000.0,0.0001,2]
[353927124,1740151801812,-300.0,9.999e-05,2]
[353927125,1740151801834,-8078.0,0.0001,2]
[353927128,1740151831711,-10268.52046688,0.0001,2]
[353927129,1740151831721,-531.18,0.00010466,2]
[353927130,1740151831730,-484.96166495,0.00010931,2]
[353927132,1740151831739,-420.0,0.00010999,2]
[353927133,1740151831749,-476.22893432,0.00011,2]
[353927134,1740151831759,-11505.46864061,0.00011804,2]
[353927135,1740151831769,-600.0,0.00012,2]
[353927136,1740151831778,-587.0,0.00012099,2]
[353927137,1740151831787,-250.0,0.00012135,2]
[353927138,1740151831797,-172.67,0.00012384,2]
[353927139,1740151831806,-1000.0,0.0001241,2]
[353927140,1740151831815,-190.92,0.00012461,2]
[353927141,1740151831824,-150.0,0.00012577,2]
[353927142,1740151831834,-194.49,0.00012646,2]
[353927143,1740151831843,-200.0,0.000127,4]
[353927144,1740151831852,-531.18,0.0001273,2]
[353927145,1740151831867,-500.0,0.000128,4]
[353927146,1740151831876,-1000.0,0.00012863,2]
[353927147,1740151831885,-800.0,0.000129,4]
[353927148,1740151831895,-499.58,0.00012978,2]
[353927149,1740151831904,-150.0,0.00013013,2]
[353927150,1740151831914,-1110.0,0.00013035,2]
[353927151,1740151831923,-1787.0,0.00013035,2]
[353927152,1740151831934,-500.0,0.00013044,2]
[353927153,1740151831944,-557.22679368,0.00013044,2]
[353927154,1740151831953,-150.0,0.00013106,2]
[353927155,1740151831963,-3918.0,0.00013275,2]
[353927156,1740151831972,-150.0,0.00013275,2]
[353927157,1740151831982,-346.213,0.00013275,2]
[353927158,1740151831991,-150.0,0.00013277,2]
[353927159,1740151832001,-1099.66895685,0.00013299,2]
[353927160,1740151832011,-24772.24999999,0.000133,2]
[353927161,1740151832021,-733.2751,0.00013308,2]
[353927162,1740151832030,-530.3104,0.00013308,2]
[353927163,1740151832039,-1520.07511547,0.00013324,2]
[353927164,1740151832048,-160.78932813,0.00013324,2]
[353927165,1740151832058,-12098.8665,0.00013324,2]
[353927166,1740151832067,-1644.4037,0.00013324,2]
[353927167,1740151832077,-397.2509,0.00013324,2]
[353927168,1740151832086,-22406.4081,0.00013324,2]
[353927169,1740151832095,-2322.5407,0.00013324,2]
[353927170,1740151832103,-1708.2857,0.00013324,2]
[353927172,1740151832115,-5204.0362,0.00013324,2]
[353927174,1740151832124,-1510.7848,0.00013324,2]
[353927176,1740151832134,-471.5714,0.00013324,2]
[353927177,1740151832143,-1520.07511546,0.00013366,2]
[353927178,1740151832153,-150.0,0.00013366,2]
[353927179,1740151832162,-11689.98120343,0.0001337,2]
[353927180,1740151832171,-309.88966976,0.00013398,2]
[353927181,1740151832180,-5000.0,0.00013398,2]
[353927182,1740151832189,-8032.42707416,0.00013408,2]
[353927183,1740151832198,-1520.07511546,0.00013408,2]
[353927184,1740151832207,-150.0,0.00013414,2]
[353927185,1740151832216,-941.661,0.00013422,2]
[353927186,1740151832225,-500.0,0.00013424,2]
[353927187,1740151832233,-162.17783118,0.00013424,2]
[353927188,1740151832242,-500.0,0.00013424,2]
[353927189,1740151832252,-500.0,0.00013424,2]
[353927190,1740151832261,-500.0,0.00013424,2]
[353927191,1740151832270,-500.0,0.00013424,2]
[353927192,1740151832279,-500.0,0.00013424,2]
[353927194,1740151832289,-500.0,0.00013424,2]
[353927196,1740151832298,-500.0,0.00013424,2]
[353927198,1740151832308,-500.0,0.00013424,2]
[353927200,1740151832318,-500.0,0.00013424,2]
[353927202,1740151832327,-500.0,0.00013424,2]
[353927204,1740151832336,-500.0,0.00013424,2]
[353927206,1740151832346,-500.0,0.00013424,2]
[353927208,1740151832359,-500.0,0.00013424,2]
[353927210,1740151832369,-500.0,0.00013424,2]
[353927212,1740151832379,-500.0,0.00013424,2]
[353927214,1740151832389,-1576.71,0.00013424,2]
[353927216,1740151832399,-500.0,0.00013424,2]
[353927218,1740151832408,-500.0,0.00013424,2]
[353927220,1740151832418,-305.74978477,0.00013424,2]
[353927222,1740151832427,-500.0,0.00013424,2]
[353927224,1740151832437,-500.0,0.00013424,2]
[353927226,1740151832446,-500.0,0.00013424,2]
[353927228,1740151832456,-500.0,0.00013424,2]
[353927230,1740151832465,-500.0,0.00013424,2]
[353927232,1740151832475,-500.0,0.00013424,2]
[353927234,1740151832484,-505.95771604,0.00013424,2]
[353927236,1740151832494,-500.0,0.00013424,2]
[353927238,1740151832504,-500.0,0.00013424,2]
[353927239,1740151832514,-500.0,0.00013424,2]
[353927240,1740151832524,-500.0,0.00013424,2]
[353927241,1740151832533,-567.98054199,0.00013424,2]
[353927242,1740151832543,-500.0,0.00013424,2]
[353927244,1740151832551,-502.54528306,0.00013424,2]
[353927246,1740151832561,-500.0,0.00013424,2]
[353927248,1740151832571,-500.0,0.00013424,2]